Cogmind - Beta 14 @@@ ROGUE MODE // 2024.08.24 @ 11:56:46 Player: Minty Result: Destroyed by 3M-5EC(R) with Subdweller Machine Gun Performance ------------- Evolutions (0) 0 Regions Visited (2) 400 Robots Destroyed (27) 135 Value Destroyed (538) 538 Prototype IDs (3) 60 Alien Tech Used (0) 0 Bonus (0) 0 TOTAL SCORE: 1133 Bonus ------- None Cogmind --------- Core Integrity 0/250 Matter 300/300 Energy 100/100 System Corruption 0% Temperature Cool (0) Movement Treading (240) Ox1 Location -10/Subcaves Parts ------- > --- POWER (1) -------- Subdweller Power Source > --- PROPULSION (2) --- Light Treads > --- UTILITY (2) ------ Large Storage Unit > --- WEAPON (2) ------- Ripper > --- INVENTORY (15) --- Meta Core Improved Heat Sink Huge Storage Unit Structural Scanner Machine Analyzer Terrain Scanner Seismic Detector Utility Shielding Recalibrator Medium Laser Beam Cannon Subdweller Machine Gun Peak State ------------ > --- POWER ------------ Ion Engine > --- PROPULSION ------- Light Treads Light Treads > --- UTILITY ---------- Large Storage Unit Makeshift Thermal Plating > --- WEAPON ----------- Beam Cannon Ripper > --- INVENTORY -------- Wheel Improved Heat Sink Huge Storage Unit Structural Scanner Machine Analyzer Terrain Scanner Seismic Detector Utility Shielding Recalibrator EM Pulse Gun Medium Laser [Rating: 14] Favorites ----------- Power Ion Engine Engine Ion Engine Propulsion Light Treads Treads Light Treads Leg Aluminum Leg Wheel Wheel Utility Large Storage Unit Device Structural Scanner Storage Large Storage Unit Protection Makeshift Thermal Plating Weapon Medium Laser Energy Gun Medium Laser Energy Cannon Beam Cannon Ballistic Gun Assault Rifle Slashing Weapon Ripper Build | -11 -10 -10 ------- Run | Yrd Mat Sub Slots Evolved . | . . . Power . | . . . Propulsion . | . . . Utility . | . . . Weapon . | . . . Parts Attached 22 | . 10 12 Power 3 | . 2 1 Engine 3 | . 2 1 Core . | . . . Reactor . | . . . Propulsion 8 | . 4 4 Treads 2 | . . 2 Leg . | . . . Wheel 6 | . 4 2 Hover . | . . . Flight . | . . . Utility 4 | . 3 1 Device 1 | . 1 . Storage 2 | . 2 . Processor . | . . . Hackware . | . . . Protection 1 | . . 1 Artifact . | . . . Weapon 7 | . 1 6 Energy Gun 2 | . . 2 Energy Cannon 2 | . . 2 Ballistic Gun 1 | . 1 . Ballistic Cannon . | . . . Launcher . | . . . Special Weapon . | . . . Impact Weapon . | . . . Slashing Weapon 2 | . . 2 Piercing Weapon . | . . . Special Melee Weapon . | . . . Unidentified Prototypes . | . . . Parts Lost 9 | . . 9 Power 1 | . . 1 Propulsion 5 | . . 5 Utility 1 | . . 1 Weapon 2 | . . 2 Highest Loss Streak 4 | . . 4 To Critical Strikes . | . . . Average Slot Usage (%) 95 | . 99 92 Engine 13 | . 14 13 Treads 13 | . . 23 Leg 2 | . 5 . Wheel 11 | . 22 3 Device 7 | . 13 2 Storage 14 | . 14 14 Protection 3 | . . 6 Energy Gun 10 | . 14 8 Energy Cannon 4 | . . 8 Ballistic Gun 6 | . 14 1 Slashing Weapon 5 | . . 9 Peak Build Rating 14 | 6 9 14 Average Rating 10 | 6 7 12 On Entrance 7 | 6 6 9 Naked Turns . | . . . Heaviest Build 35 | 14 30 35 Greatest Support 40 | 20 20 40 Greatest Overweight (x) 2 | . 1 2 Average Overweight (x) . | . . . Largest Inventory Capacity 15 | 8 15 15 Average Capacity 13 | 8 11 15 Most Carried 13 | 6 13 13 Average Carried 11 | 6 10 11 Final Capacity 15 | 8 15 15 Final Carried 13 | 6 13 12 Class Distribution -------------------- 100% | Mutant Dominant Class ---------------- Mutant | -10/Materials Mutant | -10/Subcaves Resources | -11 -10 -10 ----------- Run | Yrd Mat Sub Matter Collected 528 | 200 183 145 Remotely . | . . . Salvage Created 692 | . 403 289 Parts 43 | . 30 13 Haulers Intercepted . | . . . Recyclers Shooed . | . . . Parts Field Recycled . | . . . Retrieved Matter . | . . . Parts Self-Destructed 4 | . . 4 Prevented . | . . . Kills | -11 -10 -10 ------- Run | Yrd Mat Sub Combat Hostiles Destroyed 21 | . 13 8 Melee 3 | . . 3 Guns 16 | . 13 3 Cannons 2 | . . 2 Classes Destroyed 7 | . 5 2 Builder 2 | . 2 . Mechanic 1 | . 1 . Turret 2 | . . 2 Watcher 1 | . 1 . Swarmer 13 | . 9 4 Grunt 4 | . 4 . Subdweller 4 | . . 4 Best Kill Streak 4 | . 4 4 Combat Bots Only 4 | . 3 4 Max Kills in Single Turn 2 | . 2 1 Gunslinging 1 | . 1 . Exploded . | . . . Melee 1 | . . 1 Uniques/NPCs Destroyed . | . . . Combat | -11 -10 -10 -------- Run | Yrd Mat Sub Hostile Shots Fired 233 | . 51 182 Missed 86 | . 16 70 Damage Taken 1440 | . 335 1105 Core 263 | . 38 225 Absorbed by Shields . | . . . Ignored by Resistances 21 | . . 21 Regen/Repaired (Parts) 10 | . 10 . Core Remaining (%) 100 | 100 . . Volleys Fired 62 | . 33 29 Largest 2 | . 2 2 Hottest 110 | . 70 110 Shots Fired 121 | . 66 55 Gun 101 | . 66 35 Cannon 20 | . . 20 Launcher . | . . . Special . | . . . Kinetic 46 | . 33 13 Thermal 72 | . 33 39 Explosive . | . . . Electromagnetic 3 | . . 3 Robot Hit Streak 8 | . 6 8 Robot Miss Streak 6 | . 4 6 Penetration Max . | . . . Secondary Targets 1 | . 1 . Max Gunslinging Chain 1 | . 1 . Shots Hit Robots 78 | . 38 40 Core Hits 38 | . 23 15 Critical Kills . | . . . Critical Parts Destroyed . | . . . Critical Strikes 5 | . 5 . Burn 5 | . 5 . Melee Attacks 18 | . . 18 Impact . | . . . Slashing 18 | . . 18 Piercing . | . . . Sneak Attacks . | . . . Combat Hostiles . | . . . Follow-up Attacks . | . . . Damage Inflicted 1267 | . 467 800 Guns 690 | . 467 223 Cannons 227 | . . 227 Explosions . | . . . Melee 350 | . . 350 Ramming . | . . . Kinetic 312 | . 258 54 Thermal 572 | . 209 363 Explosive . | . . . Electromagnetic 33 | . . 33 Impact . | . . . Slashing 350 | . . 350 Piercing . | . . . Highest Corruption . | . . . Average Corruption . | . . . Corruption Purged . | . . . Corruption Blocked . | . . . Overload Shots . | . . . Overflow Damage . | . . . Projectiles . | . . . Explosions . | . . . Melee . | . . . Knockbacks . | . . . Impact . | . . . Kinetic . | . . . Secondary . | . . . Self-Inflicted Damage . | . . . Shots . | . . . Rammed . | . . . Targets Rammed . | . . . Kicked . | . . . Crushed . | . . . Highest Temperature 69 | . 69 12 Average Temperature 18 | . 21 5 Received Heat Transfer 336 | . 78 258 Siege Activations . | . . . Robots Corrupted . | . . . Combat Hostiles . | . . . Parts Fried . | . . . Impact Corruptions . | . . . Robots Melted . | . . . Combat Hostiles . | . . . Parts Melted 1 | . 1 . Heat Transferred 1887 | . 999 888 Parts Sabotaged . | . . . Parts Stolen . | . . . Parts Stripped . | . . . Power Chain Reactions . | . . . Alert | -11 -10 -10 ------- Run | Yrd Mat Sub Peak Influence 302 | . 302 . Initial . | . . . Average 134 | . 135 . Maximum Alert Level 1 | . 1 . Low Security (%) 61 | 100 61 . Level 1 38 | . 38 . Level 2 . | . . . Level 3 . | . . . Level 4 . | . . . Level 5 . | . . . High Security . | . . . Max Security . | . . . Squads Dispatched 1 | . 1 . Investigation 1 | . 1 . Extermination . | . . . Reinforcement . | . . . Assault . | . . . Garrison . | . . . Intercept . | . . . Searches Triggered . | . . . Construction Impeded . | . . . Haulers Reinforced . | . . . Active Scanning Responses . | . . . Cargo Convoy Interrupts . | . . . Stealth | -11 -10 -10 --------- Run | Yrd Mat Sub Distress Signals 1 | . 1 . Communications Jammed . | . . . Distress Signals . | . . . Times Spotted 36 | . 20 16 Peak Tracking Total 5 | . 5 5 Tactical Retreats 4 | . 1 3 Traps | -11 -10 -10 ------- Run | Yrd Mat Sub Traps Triggered . | . . . Indirectly . | . . . Trap Hack Attempts . | . . . Triggered . | . . . Disarmed 6 | . 6 . Reprogrammed 1 | . 1 . Reused 1 | . 1 . Traps Extracted . | . . . Installed . | . . . Triggered 1 | . 1 . Machines | -11 -10 -10 ---------- Run | Yrd Mat Sub Machines Disabled 1 | . . 1 Max in Single Turn 1 | . . 1 Machines Repaired . | . . . Machines Dismantled . | . . . Machines Sabotaged . | . . . Overloaded Fab Kills . | . . . Hacking | -11 -10 -10 --------- Run | Yrd Mat Sub Machines Accessed 9 | . 9 . Terminals 6 | . 6 . Fabricators . | . . . Repair Stations 1 | . 1 . Recycling Units 2 | . 2 . Scanalyzers . | . . . Garrison Access . | . . . Total Hacks 26 | . 26 . Successful 16 | . 16 . Failed 10 | . 10 . Catastrophic . | . . . Database Lockouts . | . . . Manual 6 | . 6 . Terminals 19 | . 19 . Fabricators . | . . . Repair Stations 2 | . 2 . Recycling Units 5 | . 5 . Scanalyzers . | . . . Garrison Access . | . . . Terminal Hacks 10 | . 10 . Prototype ID Bank 2 | . 2 . Locate Traps 3 | . 3 . Disarm Traps 1 | . 1 . Reprogram Traps 1 | . 1 . Maintenance Status 1 | . 1 . Zone Layout 2 | . 2 . Fabricator Hacks . | . . . Repair Station Hacks 2 | . 2 . Scan Component 1 | . 1 . Repair 1 | . 1 . Recycling Unit Hacks 3 | . 3 . Report Inventory 2 | . 2 . Retrieve Components 1 | . 1 . Scanalyzer . | . . . Garrison Access Hacks . | . . . Unauthorized Hacks 1 | . 1 . Terminals 1 | . 1 . Botnet 1 | . 1 . Fabricators . | . . . Repair Stations . | . . . Recycling Units . | . . . Scanalyzers . | . . . Garrison Access . | . . . Data Cores Recovered . | . . . Used . | . . . Hacking Detections 7 | . 7 . Full Trace Events 2 | . 2 . Feedback Events . | . . . Feedback Blocked . | . . . Robot Schematics Acquired . | . . . Robots Built . | . . . Authchips . | . . . Time . | . . . Total Robot Build Rating . | . . . Part Schematics Acquired . | . . . Parts Built . | . . . Authchips . | . . . Time . | . . . Total Part Build Rating . | . . . Parts Repaired 1 | . 1 . Time 26 | . 26 . Parts Recycled . | . . . Recycled Matter . | . . . Retrieved Matter . | . . . Retrieved Components 2 | . 2 . Parts Scanalyzed . | . . . Part Schematics Acquired . | . . . Parts Damaged . | . . . Bothacking | -11 -10 -10 ------------ Run | Yrd Mat Sub Used RIF Installer . | . . . Robots Hacked . | . . . Non-combat . | . . . Combat . | . . . Robot Hacks Applied . | . . . Relay Couplers Released . | . . . Fabnet Peak Effective % . | . . . Robots Rewired . | . . . Allies Hacked . | . . . Hacks Repelled . | . . . Allies | -11 -10 -10 -------- Run | Yrd Mat Sub Total Allies . | . . . Largest Group . | . . . Highest-Rated Group . | . . . Highest-Rated Ally . | . . . Total Orders . | . . . Ally Attacks . | . . . Total Damage . | . . . Kills . | . . . Allies Corrupted . | . . . Allies Melted . | . . . Intel | -11 -10 -10 ------- Run | Yrd Mat Sub Robot Analysis Total . | . . . Derelict Logs Recovered . | . . . Drone Launches . | . . . Drone Recoveries . | . . . Exploration | -11 -10 -10 ------------- Run | Yrd Mat Sub Turns Passed 1628 | 3 680 945 Spaces Moved 1088 | 3 560 525 Core . | . . . Treads 441 | . . 441 Legs 110 | 3 107 . Wheels 537 | . 453 84 Hover . | . . . Flight . | . . . Fastest Speed 80 | 120 80 95 Average Speed 120 | 120 93 150 Slowest Speed 240 | 120 120 240 Overloaded Moves . | . . . Propulsion Burnouts . | . . . Robots Hopped . | . . . Cave-ins Triggered . | . . . Exploration Rate (%) 40 | 2 84 34 Regions Visited 2 Branch Regions 1 Pre-discovered Areas . | . . . Known Exits Taken . | . . . Unknown Exits Taken 2 | 1 1 . Scrap Searched . | . . . Spaces Dug . | . . . Terrain Destroyed . | . . . Melee . | . . . Projectile . | . . . AOE . | . . . Terrain Rammed . | . . . Walls Destroyed . | . . . Machines Disabled . | . . . Actions | -11 -10 -10 --------- Run | Yrd Mat Sub Total 1253 | 2 653 598 Wait 41 | . 31 10 Move 1086 | 2 559 525 Hop . | . . . Pick Up 14 | . 11 3 Fast Attach 3 | . 1 2 Attach 7 | . 2 5 Detach 1 | . . 1 Swap 12 | . 7 5 Drop 9 | . 9 . Fire 62 | . 33 29 Melee 18 | . . 18 Ram . | . . . Kick . | . . . Crush . | . . . Escape Stasis . | . . . Rewire . | . . . Trap . | . . . Miscellaneous . | . . . Route ------- -11/Scrapyard -10/Materials (discovered 4 exits: [*Mat x2] / [*Min] / [*Sub]) -10/Subcaves (discovered 2 exits: [*Mat] / [*Rec]) History --------- Turn | Location | Event 1 | -11/Scrapyard | Discovered new exit (range 2) 4 | -11/Scrapyard | Entered Materials 165 | -10/Materials | Discovered new exit (range 13) 296 | -10/Materials | Repaired Seismic Detector 316 | -10/Materials | Build established: Mutant 418 | -10/Materials | Discovered new exit (range 15) 555 | -10/Materials | Discovered new exit (range 16) 679 | -10/Materials | Discovered new exit (range 6) 684 | -10/Materials | Entered Subcaves 788 | -10/Subcaves | Discovered new exit (range 12) 804 | -10/Subcaves | Core integrity fell below 50% 846 | -10/Subcaves | Lost 4 parts (3n1w) 865 | -10/Subcaves | Shifting Twisted Machinery released Ripper 865 | -10/Subcaves | Shifting Twisted Machinery released Mak. Thermal Plating 1266 | -10/Subcaves | A Subdweller sparked back to life 1266 | -10/Subcaves | A Subdweller sparked back to life 1266 | -10/Subcaves | A Subdweller sparked back to life 1311 | -10/Subcaves | Found Prototype Power Core 1517 | -10/Subcaves | Discovered new exit (range 12) 1590 | -10/Subcaves | Core integrity fell below 20% 1629 | -10/Subcaves | Destroyed by 3M-5EC(R) with Subdweller Machine Gun Last Messages --------------- 01287_ Critical hit (Destroy). 01296_ Subatomizers dissect the Sub. Power Source. 01297_ 7M-OI6(R) destroyed. 01297_ Mak. Thermal Plating destroyed. 01303_ YV-3TR(R) destroyed. 01309_ Subatomizers dissect the Sub. Power Source. 01311_ Acquired Prototype Power Core. 01312_ Acquired 30 matter. 01320_ Acquired Sub. Power Source. 01324_ Acquired 10 matter. 01331_ Acquired Sub. Machine Gun. 01344_ Subatomizers dissect the Sub. Optics. 01479_ IY-TZO(u) deconstructs Twisted Machinery. 01512_ Sub. Power Source shoots sparks and powers down. 01517_ EXIT=FOUND 01595_ EM Pulse Gun destroyed. 01603_ Lgt. Treads destroyed. 01617_ EZ-PHM(R) destroyed. 01620_ Acquired 10 matter. 01626_ Wheel destroyed. Map ----- +----------------------------------------------------+ | ?????????????????## #### """"""""#?????# | | ?????????????????## ### """ "##??#### | | ???????????????### #### ##???#"" | | ???????????????# #### " ##????#""" | | ???????????????# #### "" ########"" | | ???????????????# ##### ""### # | | ???????????????# #??### ""# ##### | | ??????????????## ##????# #???? | | ??????????????# #?????# "" #??? | | ??????????????## ###???######" #?? | | ???????????????# #????????##" #?? | | ??????????????# ### < ##?????????#" #? | | ??????????????# #??## ####???????## ######? | | ??????????????# #???## ##???????###?????? | | ??????????????####???## ####????????????? | | ??????????????????#### ##???????????? | | ?????????????????## #???????????? | | ???????????????### #???????????? | | ??????????????## # ##### #???????????? | | ??????????????# #### ##?## ##???????????? | | ??????????????# ##<"## ## ##????????????? | | ??????????????# #< "# #?????????????? | | ??????????????# #" <# ##?????????????? | | ??????????????# ##"< #= ###??????????????? | | ??????????????# ####%! #????????????????? | | ??????????????# &@ ###??????????????? | | ??????????????# ####R #??????????????? | | ??????????????# ## ## #?????????????? | | ??????????????# #? #????????????? | | ??????????????# ####? ###????????????? | | ??????????????# #????# #??????????????? | | ??????????????# ##?????# #?????????????? | | ??????????????### ###???????# #?????????????? | | ????????????????# ##?????????? ?????????????? | | ???????????????# #???????????????????????????? | | ???????????????# ???????????????????????????? | | ???????????????# ???????????????????????????? | | ???????????????# ??????????????????????????? | | ??????????????? ??????????????????????????? | | ??????????????? ?????????????????????????? | | ?????????????? """" ?????????????????????????? | | ??????????????"" "## ????????????????????????? | | ??????????????""""##? ????????????????????????? | | ?????????????#?"""???# ???????????????????????? | | ??????????????????????#???????????????????????? | | ??????????????????????????????????????????????? | | ??????????????????????????????????????????????? | | ??????????????????????????????????????????????? | | ??????????????????????????????????????????????? | | ??????????????????????????????????????????????? | +----------------------------------------------------+ Best States ------------- Heat Dissipation 25 Energy Generation 15 Energy Capacity 250 Matter Stores 300 Matter Capacity 300 Sight Range 16 Terrain Scan Density 10 Armor Coverage 100 Resistance: TH 10 Evasion (%) 55 Recoil Reduction 2 Item Schematics ----------------- None Robot Schematics ------------------ None Fabricated ------------ Nothing Alien Tech Used ----------------- None Achievements -------------- None Challenges ------------ None Game ------ Seed FortressDisruptionBiocell Manual? 0 Play Time 00:09:23 Cumulative 884.0 hours Start 2024.08.24 @ 11:45:57 End 2024.08.24 @ 11:56:46 Sessions 1 Manual Loads 0 Difficulty Rogue Special Mode None Game No. 1074 Rogue 795 Adventurer 124 Explorer 155 Win Type - Total 37 Types 28/0/7/1/0/0/0/1/0 Lore% 78 Gallery% 89 Achievement% 78 Wizard Run 0 Options --------- Layout 0 ASCII 0 Keyboard 1 Movement Numpad Keybinds 0 Fullscreen 2 Font 18/X11 Map View 76x50 Zoom Use 0% Tactical HUD 1 Map Filters NONE Filters NONE Steam 1 RUN: cd999e37-a01c-43be-8387-6be414946235